Department family,Entity,Date,Expense type,Expense area,Supplier,Transaction number,Amount
Department of Health,Leicestershire Partnership NHS Trust,01/04/21,Unitary Payment,"The Agnes Unit (AKA Assessment and Treatment Centre) (P85, LPT)",ARDEN PARTNERSHIP (LEICESTER),SI0068,119603.57
Department of Health,Leicestershire Partnership NHS Trust,01/04/21,Payroll Deductions -Salary Sacrifice Cars Scheme,Balance Sheet Collection,TUSKER,47366,29905.35
Department of Health,Leicestershire Partnership NHS Trust,01/04/21,External Data Processing / Storage,Records & information Governance,H COATES LTD/TA C&V DATA,4004699,31681.77
Department of Health,Leicestershire Partnership NHS Trust,06/04/21,Other Non-Medical Supplies & Services,Unallocated Budgets,NORTHAMPTONSHIRE HC NHS FT (RP1),5150185,150000.00
Department of Health,Leicestershire Partnership NHS Trust,06/04/21,Services / Recharges from NHS Trusts,Inter Unit I & E Distribution,UHL NHS TRUST (RWE),L0249774,148349.05
Department of Health,Leicestershire Partnership NHS Trust,06/04/21,NURSE - BAND 2 - AGENCY,Beechwood Ward,HCL NURSING,HNSI0000650,1196.53
Department of Health,Leicestershire Partnership NHS Trust,06/04/21,NURSE - BAND 5 - AGENCY,Beechwood Ward,HCL NURSING,HNSI0000650,2914.32
Department of Health,Leicestershire Partnership NHS Trust,06/04/21,NURSE - BAND 5 - AGENCY,City Planned Care - East,HCL NURSING,HNSI0000650,11608.08
Department of Health,Leicestershire Partnership NHS Trust,06/04/21,NURSE - BAND 5 - AGENCY,City Planned Care - West,HCL NURSING,HNSI0000650,15638.22
Department of Health,Leicestershire Partnership NHS Trust,06/04/21,Nurse - Band 6 -Agency,City West CMHT MHSOP,HCL NURSING,HNSI0000650,3162.47
Department of Health,Leicestershire Partnership NHS Trust,06/04/21,NURSE - BAND 2 - AGENCY,Clarendon Ward,HCL NURSING,HNSI0000650,1871.99
Department of Health,Leicestershire Partnership NHS Trust,06/04/21,NURSE - BAND 5 - AGENCY,Clarendon Ward,HCL NURSING,HNSI0000650,8393.85
Department of Health,Leicestershire Partnership NHS Trust,06/04/21,NURSE - BAND 2 - AGENCY,Coalville Snibston Ward,HCL NURSING,HNSI0000650,1095.50
Department of Health,Leicestershire Partnership NHS Trust,06/04/21,NURSE - BAND 5 - AGENCY,Coalville Snibston Ward,HCL NURSING,HNSI0000650,5640.47
Department of Health,Leicestershire Partnership NHS Trust,06/04/21,NURSE - BAND 5 - AGENCY,Coalville Ward 2,HCL NURSING,HNSI0000650,3379.66
Department of Health,Leicestershire Partnership NHS Trust,06/04/21,NURSE - BAND 2 - AGENCY,Coleman Ward,HCL NURSING,HNSI0000650,1510.10
Department of Health,Leicestershire Partnership NHS Trust,06/04/21,NURSE - BAND 5 - AGENCY,Coleman Ward,HCL NURSING,HNSI0000650,3758.78
Department of Health,Leicestershire Partnership NHS Trust,06/04/21,NURSE - BAND 5 - AGENCY,Dalgliesh Ward,HCL NURSING,HNSI0000650,1544.55
Department of Health,Leicestershire Partnership NHS Trust,06/04/21,NURSE - BAND 2 - AGENCY,Gwendolen Ward,HCL NURSING,HNSI0000650,2593.49
Department of Health,Leicestershire Partnership NHS Trust,06/04/21,NURSE - BAND 5 - AGENCY,Gwendolen Ward,HCL NURSING,HNSI0000650,4593.93
Department of Health,Leicestershire Partnership NHS Trust,06/04/21,NURSE - BAND 2 - AGENCY,H&B Comm Hosp East Ward,HCL NURSING,HNSI0000650,693.04
Department of Health,Leicestershire Partnership NHS Trust,06/04/21,NURSE - BAND 5 - AGENCY,H&B Comm Hosp East Ward,HCL NURSING,HNSI0000650,2930.31
Department of Health,Leicestershire Partnership NHS Trust,06/04/21,NURSE - BAND 2 - AGENCY,H&B Comm Hosp North Ward,HCL NURSING,HNSI0000650,458.89
Department of Health,Leicestershire Partnership NHS Trust,06/04/21,NURSE - BAND 5 - AGENCY,H&B Comm Hosp North Ward,HCL NURSING,HNSI0000650,4371.38
Department of Health,Leicestershire Partnership NHS Trust,06/04/21,NURSE - BAND 2 - AGENCY,Kirby Ward,HCL NURSING,HNSI0000650,182.71
Department of Health,Leicestershire Partnership NHS Trust,06/04/21,NURSE - BAND 5 - AGENCY,Kirby Ward,HCL NURSING,HNSI0000650,1256.59
Department of Health,Leicestershire Partnership NHS Trust,06/04/21,NURSE - BAND 5 - AGENCY,Lough Swithland Ward,HCL NURSING,HNSI0000650,2434.03
Department of Health,Leicestershire Partnership NHS Trust,06/04/21,NURSE - BAND 5 - AGENCY,Non Recurrent 2012/13,HCL NURSING,HNSI0000650,571.82
Department of Health,Leicestershire Partnership NHS Trust,06/04/21,NURSE - BAND 2 - AGENCY,Rutland Ward Nursing,HCL NURSING,HNSI0000650,3995.98
Department of Health,Leicestershire Partnership NHS Trust,06/04/21,Nurse - Band 6 -Agency,South Leicestershire CMHT MHSOP,HCL NURSING,HNSI0000650,979.36
Department of Health,Leicestershire Partnership NHS Trust,06/04/21,NURSE - BAND 2 - AGENCY,St Lukes Stroke Ward,HCL NURSING,HNSI0000650,1993.50
Department of Health,Leicestershire Partnership NHS Trust,06/04/21,NURSE - BAND 5 - AGENCY,St Lukes Stroke Ward,HCL NURSING,HNSI0000650,3869.98
Department of Health,Leicestershire Partnership NHS Trust,06/04/21,NURSE - BAND 2 - AGENCY,St Lukes Ward 3,HCL NURSING,HNSI0000650,1339.02
Department of Health,Leicestershire Partnership NHS Trust,06/04/21,NURSE - BAND 5 - AGENCY,St Lukes Ward 3,HCL NURSING,HNSI0000650,514.85
Department of Health,Leicestershire Partnership NHS Trust,06/04/21,NURSE - BAND 2 - AGENCY,Wakerley Ward,HCL NURSING,HNSI0000650,2696.68
Department of Health,Leicestershire Partnership NHS Trust,06/04/21,NURSE - BAND 5 - AGENCY,Wakerley Ward,HCL NURSING,HNSI0000650,7426.72
Department of Health,Leicestershire Partnership NHS Trust,06/04/21,NURSE - BAND 2 - AGENCY,Welford Ward,HCL NURSING,HNSI0000650,397.13
Department of Health,Leicestershire Partnership NHS Trust,07/04/21,Rates,"Hinckley and Bosworth Community Hospital (Sunnyside) (P133, LPT)",HINCKLEY & BOS BOR COUNCIL,101215613/21-22,93184.00
Department of Health,Leicestershire Partnership NHS Trust,07/04/21,Rates,"Orchard Resource Centre (P15, LPT)",HINCKLEY & BOS BOR COUNCIL,101125389/21-22,35584.00
Department of Health,Leicestershire Partnership NHS Trust,07/04/21,Rates,"Hynca Lodge (P33, LPT)",HINCKLEY & BOS BOR COUNCIL,101182995/21-22,47872.00
Department of Health,Leicestershire Partnership NHS Trust,07/04/21,Rates,"Coalville Community Hospital (P138, LPT)",NW LEICS DISTRICT COUNCIL,2001095931/21-22,105472.00
Department of Health,Leicestershire Partnership NHS Trust,07/04/21,GP IT Expenditure,Area Team,DELL COMPUTERS,7402691953,41565.13
Department of Health,Leicestershire Partnership NHS Trust,07/04/21,Rates,"The Cedars (P19, LPT)",OADBY&WIGSTON BOROUGH COUNCIL,90359910/21-22,26368.00
Department of Health,Leicestershire Partnership NHS Trust,07/04/21,Computer Hardware,Area Team,PHOENIX SOFTWARE LTD,OP/I893736,51300.00
Department of Health,Leicestershire Partnership NHS Trust,07/04/21,Computer License  Fees,Finance Department,ORACLE CORPORATION,1799716,33450.71
Department of Health,Leicestershire Partnership NHS Trust,07/04/21,Medical Equipment Repairs / Maintenance,Medical Devices Maintenance (LPT),SUPPLY CHAIN CO LTD,2121007442.,33411.40
Department of Health,Leicestershire Partnership NHS Trust,07/04/21,Rent,County Hall,LEIC COUNTY COUNCIL,6287380,34488.50
Department of Health,Leicestershire Partnership NHS Trust,07/04/21,Rent,"St Peters Health Center (Part 1st and 2nd floors) (P66, LPT)",LEICESTER LIFT CO,LEP1/SI0723,27433.45
Department of Health,Leicestershire Partnership NHS Trust,07/04/21,Rent,NSPCC Training Cente,NSPCC,119101,28752.40
Department of Health,Leicestershire Partnership NHS Trust,07/04/21,Rates,Bridge Park Plaza - First Floor (LPT),CHARNWOOD BOROUGH COUNCIL,96250653/21-22,139520.00
Department of Health,Leicestershire Partnership NHS Trust,07/04/21,Rates,"Bridge Park Road - Units 2 and 3 (P148, LPT)",CHARNWOOD BOROUGH COUNCIL,96260445/21-22,45056.00
Department of Health,Leicestershire Partnership NHS Trust,07/04/21,Med GP Trainees,Medical Trainees,ST.HELENS & KNOWSLEY NHS TRUST,16804328,75000.00
Department of Health,Leicestershire Partnership NHS Trust,07/04/21,Rates,"Loughborough Hospital (P136, LPT)",CHARNWOOD BOROUGH COUNCIL,96034105/21-22,208640.00
Department of Health,Leicestershire Partnership NHS Trust,07/04/21,Rates,"Bradgate Unit (including Glenvale day Unit) (P7, LPT)",LEIC CITY COUNCIL,8002537317/21-22,198400.00
Department of Health,Leicestershire Partnership NHS Trust,07/04/21,Rates,"Evington Centre (P6, LPT)",LEIC CITY COUNCIL,8002517107/21-22,74240.00
Department of Health,Leicestershire Partnership NHS Trust,07/04/21,Rates,"Valentine Centre (P3, LPT)",LEIC CITY COUNCIL,8001276348/21-22,59392.00
Department of Health,Leicestershire Partnership NHS Trust,07/04/21,Rates,"Westcotes Group -Westcotes House (P78, LPT)",LEIC CITY COUNCIL,8001246533/21-22,38400.00
Department of Health,Leicestershire Partnership NHS Trust,07/04/21,Rates,"Prince Philip House (P96, LPT)",LEIC CITY COUNCIL,8002301995/21-22,35328.00
Department of Health,Leicestershire Partnership NHS Trust,07/04/21,Rates,"Rutland Memorial Hospital (P134, LPT)",RUTLAND COUNTY COUNCIL,10059789/21-22,40704.00
Department of Health,Leicestershire Partnership NHS Trust,07/04/21,Rates,"OSL House (P54, LPT)",BLABY DISTRICT COUNCIL,N030054285/21-22,54272.00
Department of Health,Leicestershire Partnership NHS Trust,07/04/21,Payroll Deductions -Home Electronics 54 Mar 21,Balance Sheet Collection,SME HCI LTD,134781,32366.10
Department of Health,Leicestershire Partnership NHS Trust,08/04/21,Computer Hardware,Area Team,CCS MEDIA,4161975,39331.34
Department of Health,Leicestershire Partnership NHS Trust,09/04/21,Network Costs - WAN Maint,HIS Infrastructure,VIRGIN MEDIA BUSINESS,262421-179,38141.04
Department of Health,Leicestershire Partnership NHS Trust,12/04/21,Nurse - Band 6 -Agency,CAMHS Inpatient Service,PROMETHEUS S & S LTD,18875,39924.50
Department of Health,Leicestershire Partnership NHS Trust,12/04/21,Nurse - Band 6 -Agency,CAMHS Inpatient Service,PROMETHEUS S & S LTD,19036,38463.00
Department of Health,Leicestershire Partnership NHS Trust,12/04/21,Prep_ LT1y -Prepayments Lease Cars,Balance Sheet Collection,BRIAN JOHNSTON & CO LTD,555405/386403,155523.48
Department of Health,Leicestershire Partnership NHS Trust,12/04/21,Nurse - Band 6 -Agency,CAMHS Inpatient Service,PROMETHEUS S & S LTD,19187,42033.00
Department of Health,Leicestershire Partnership NHS Trust,12/04/21,Crs_NHS_LT1y -Resus Inventory Supplied.,Balance Sheet Collection,SUPPLY CHAIN CO LTD,1122001659,1019889.95
Department of Health,Leicestershire Partnership NHS Trust,12/04/21,NURSE - BAND 5 - AGENCY,AMH - Central Access Point,HCL NURSING,HNSI0000654,248.05
Department of Health,Leicestershire Partnership NHS Trust,12/04/21,Nurse - Band 6 -Agency,AMH - Central Access Point,HCL NURSING,HNSI0000654,3355.11
Department of Health,Leicestershire Partnership NHS Trust,12/04/21,Nurse - Band 6 -Agency,Adult City East CMHT - Merlyn Vaz,HCL NURSING,HNSI0000654,1274.47
Department of Health,Leicestershire Partnership NHS Trust,12/04/21,Nurse - Band 6 -Agency,Adult County Charnwood CMHT - Loughborough Base,HCL NURSING,HNSI0000654,2089.15
Department of Health,Leicestershire Partnership NHS Trust,12/04/21,NURSE - BAND 2 - AGENCY,Agnes Unit Management,HCL NURSING,HNSI0000654,11483.11
Department of Health,Leicestershire Partnership NHS Trust,12/04/21,NURSE - BAND 5 - AGENCY,Agnes Unit Management,HCL NURSING,HNSI0000654,10801.34
Department of Health,Leicestershire Partnership NHS Trust,12/04/21,NURSE - BAND 2 - AGENCY,Ashby Ward (Bradgate Unit),HCL NURSING,HNSI0000654,1342.64
Department of Health,Leicestershire Partnership NHS Trust,12/04/21,NURSE - BAND 5 - AGENCY,Ashby Ward (Bradgate Unit),HCL NURSING,HNSI0000654,596.60
Department of Health,Leicestershire Partnership NHS Trust,12/04/21,NURSE - BAND 2 - AGENCY,Aston Ward (Bradgate Unit),HCL NURSING,HNSI0000654,574.58
Department of Health,Leicestershire Partnership NHS Trust,12/04/21,NURSE - BAND 5 - AGENCY,Aston Ward (Bradgate Unit),HCL NURSING,HNSI0000654,329.85
Department of Health,Leicestershire Partnership NHS Trust,12/04/21,NURSE - BAND 2 - AGENCY,Beaumont Ward - Bradgate Unit,HCL NURSING,HNSI0000654,1783.88
Department of Health,Leicestershire Partnership NHS Trust,12/04/21,NURSE - BAND 5 - AGENCY,Beaumont Ward - Bradgate Unit,HCL NURSING,HNSI0000654,1149.45
Department of Health,Leicestershire Partnership NHS Trust,12/04/21,NURSE - BAND 2 - AGENCY,Belvoir Psychiatric Intensive Care Unit,HCL NURSING,HNSI0000654,4067.29
Department of Health,Leicestershire Partnership NHS Trust,12/04/21,NURSE - BAND 5 - AGENCY,Belvoir Psychiatric Intensive Care Unit,HCL NURSING,HNSI0000654,1513.09
Department of Health,Leicestershire Partnership NHS Trust,12/04/21,Nurse - Band 6 -Agency,Crisis Resolution,HCL NURSING,HNSI0000654,3974.52
Department of Health,Leicestershire Partnership NHS Trust,12/04/21,NURSE - BAND 2 - AGENCY,Griffin Ward (HPC),HCL NURSING,HNSI0000654,411.03
Department of Health,Leicestershire Partnership NHS Trust,12/04/21,NURSE - BAND 5 - AGENCY,Griffin Ward (HPC),HCL NURSING,HNSI0000654,1589.04
Department of Health,Leicestershire Partnership NHS Trust,12/04/21,NURSE - BAND 2 - AGENCY,Heather Ward,HCL NURSING,HNSI0000654,398.32
Department of Health,Leicestershire Partnership NHS Trust,12/04/21,NURSE - BAND 5 - AGENCY,Heather Ward,HCL NURSING,HNSI0000654,807.25
Department of Health,Leicestershire Partnership NHS Trust,12/04/21,NURSE - BAND 2 - AGENCY,Mill Lodge,HCL NURSING,HNSI0000654,654.06
Department of Health,Leicestershire Partnership NHS Trust,12/04/21,NURSE - BAND 5 - AGENCY,Mill Lodge,HCL NURSING,HNSI0000654,909.50
Department of Health,Leicestershire Partnership NHS Trust,12/04/21,NURSE - BAND 2 - AGENCY,Phoenix Ward (HPC),HCL NURSING,HNSI0000654,1376.63
Department of Health,Leicestershire Partnership NHS Trust,12/04/21,NURSE - BAND 5 - AGENCY,Phoenix Ward (HPC),HCL NURSING,HNSI0000654,266.77
Department of Health,Leicestershire Partnership NHS Trust,12/04/21,NURSE - BAND 2 - AGENCY,Stewart House,HCL NURSING,HNSI0000654,1243.51
Department of Health,Leicestershire Partnership NHS Trust,12/04/21,NURSE - BAND 5 - AGENCY,Stewart House,HCL NURSING,HNSI0000654,1900.80
Department of Health,Leicestershire Partnership NHS Trust,12/04/21,NURSE - BAND 2 - AGENCY,Thornton Ward - Bradgate Unit,HCL NURSING,HNSI0000654,524.19
Department of Health,Leicestershire Partnership NHS Trust,12/04/21,NURSE - BAND 2 - AGENCY,Watermead Ward (Bradgate Unit),HCL NURSING,HNSI0000654,349.46
Department of Health,Leicestershire Partnership NHS Trust,12/04/21,Nurse - Band 6 -Agency,CAMHS Waiting List Monies,HCL SOCIAL CARE,HWSI0000441,25069.55
Department of Health,Leicestershire Partnership NHS Trust,12/04/21,Senior Manager - Band 8A,CHS Community Management,RUTLAND COUNTY COUNCIL,9131241,43991.70
Department of Health,Leicestershire Partnership NHS Trust,13/04/21,PropCo Estates Management,St. Luke's Hospital (PROPCO),NHS PROPERTY SERVICES LTD,00000001/H427900,36563.25
Department of Health,Leicestershire Partnership NHS Trust,13/04/21,PropCo Estates Management,St. Luke's Hospital (PROPCO),NHS PROPERTY SERVICES LTD,00000001/H427907,47500.00
Department of Health,Leicestershire Partnership NHS Trust,13/04/21,PropCo Estates Management,St. Luke's Hospital (PROPCO),NHS PROPERTY SERVICES LTD,00000001/H427899,42105.75
Department of Health,Leicestershire Partnership NHS Trust,13/04/21,PropCo Estates Management,Charnwood Mill (PROPCO),NHS PROPERTY SERVICES LTD,00000001/H427896,30247.17
Department of Health,Leicestershire Partnership NHS Trust,13/04/21,PropCo Estates Management,"Braunstone Health and Social Care Centre (part) (P16, LPT)",NHS PROPERTY SERVICES LTD,00000001/H427892,56798.64
Department of Health,Leicestershire Partnership NHS Trust,13/04/21,Rates,"Bridge Park Road - Units 2 and 3 (P148, LPT)",CHARNWOOD BOROUGH COUNCIL,96260445/21-22CR,-40554.00
Department of Health,Leicestershire Partnership NHS Trust,13/04/21,Rates,"Bridge Park Road - Units 2 and 3 (P148, LPT)",CHARNWOOD BOROUGH COUNCIL,96260445/21-22REVISED,31850.00
Department of Health,Leicestershire Partnership NHS Trust,13/04/21,Computer EquipmentMaintenance,HIS Systems & Development,CLINISYS SOL LTD,INV34212100479,28528.79
Department of Health,Leicestershire Partnership NHS Trust,13/04/21,CHIEF EXECUTIVE'S REMUNERATION,Chief Executives Office,NORTHAMPTONSHIRE HC NHS FT (RP1),5150273,34669.08
Department of Health,Leicestershire Partnership NHS Trust,13/04/21,PropCo Estates Management,Charnwood Mill (PROPCO),NHS PROPERTY SERVICES LTD,00000001/H428984,42611.94
Department of Health,Leicestershire Partnership NHS Trust,13/04/21,PropCo Estates Management,"Braunstone Health and Social Care Centre (part) (P16, LPT)",NHS PROPERTY SERVICES LTD,00000001/H428991,59179.89
Department of Health,Leicestershire Partnership NHS Trust,13/04/21,PropCo Estates Management,St. Luke's Hospital (PROPCO),NHS PROPERTY SERVICES LTD,00000001/H428996,161699.55
Department of Health,Leicestershire Partnership NHS Trust,13/04/21,PropCo Estates Management,St. Luke's Hospital (PROPCO),NHS PROPERTY SERVICES LTD,00000001/H428989,36269.23
Department of Health,Leicestershire Partnership NHS Trust,13/04/21,PropCo Estates Management,St. Luke's Hospital (PROPCO),NHS PROPERTY SERVICES LTD,00000001/H428995,40125.10
Department of Health,Leicestershire Partnership NHS Trust,13/04/21,PropCo Estates Management,Melton Mowbray Hospital (previously St. Mary's) (PROPCO),NHS PROPERTY SERVICES LTD,00000001/H428992,107538.85
Department of Health,Leicestershire Partnership NHS Trust,13/04/21,Medical & Surgical Equipment,Medical Devices Maintenance (LPT),WELCH ALLYN UK LTD,9000407671,67200.00
Department of Health,Leicestershire Partnership NHS Trust,13/04/21,External Consultancy Fees,"Inpatients, Crisis & Liasion Management",BLABY DISTRICT COUNCIL,H0008109,40500.00
Department of Health,Leicestershire Partnership NHS Trust,13/04/21,Medical & Surgical Equipment,Medical Devices Maintenance (LPT),WELCH ALLYN UK LTD,9000406116,61387.20
Department of Health,Leicestershire Partnership NHS Trust,13/04/21,Medical & Surgical Equipment,Medical Devices Maintenance (LPT),WELCH ALLYN UK LTD,9000405931,26268.00
Department of Health,Leicestershire Partnership NHS Trust,14/04/21,Medical & Surgical Equipment,Medical Devices Maintenance (LPT),WELCH ALLYN UK LTD,9000406358,45601.92
Department of Health,Leicestershire Partnership NHS Trust,14/04/21,WIP Project Not in BS - Transport and Equipment,Work in Progress,ARJO UK LTD,3392626221,85708.86
Department of Health,Leicestershire Partnership NHS Trust,15/04/21,Insurance Costs,Chief Executives Office,NHS LITIGATION AUTHORITY,SICX404726,165217.80
Department of Health,Leicestershire Partnership NHS Trust,15/04/21,Computer Hardware,Area Team,CCS MEDIA,4146806,74408.40
Department of Health,Leicestershire Partnership NHS Trust,16/04/21,Photocopying,Estates & Facilities Central,LEXMARK INTERNATIONAL LTD,900650300692,34217.01
Department of Health,Leicestershire Partnership NHS Trust,19/04/21,Nurse - Band 6 -Agency,AMH - Central Access Point,HCL NURSING,HNSI0000661,1661.11
Department of Health,Leicestershire Partnership NHS Trust,19/04/21,Nurse - Band 6 -Agency,Adult City East CMHT - Merlyn Vaz,HCL NURSING,HNSI0000661,2339.69
Department of Health,Leicestershire Partnership NHS Trust,19/04/21,Nurse - Band 6 -Agency,Adult County West Leicestershire CMHT,HCL NURSING,HNSI0000661,855.97
Department of Health,Leicestershire Partnership NHS Trust,19/04/21,NURSE - BAND 2 - AGENCY,Agnes Unit Management,HCL NURSING,HNSI0000661,16666.09
Department of Health,Leicestershire Partnership NHS Trust,19/04/21,NURSE - BAND 5 - AGENCY,Agnes Unit Management,HCL NURSING,HNSI0000661,7469.69
Department of Health,Leicestershire Partnership NHS Trust,19/04/21,NURSE - BAND 2 - AGENCY,Ashby Ward (Bradgate Unit),HCL NURSING,HNSI0000661,277.89
Department of Health,Leicestershire Partnership NHS Trust,19/04/21,NURSE - BAND 2 - AGENCY,Aston Ward (Bradgate Unit),HCL NURSING,HNSI0000661,889.46
Department of Health,Leicestershire Partnership NHS Trust,19/04/21,NURSE - BAND 5 - AGENCY,Aston Ward (Bradgate Unit),HCL NURSING,HNSI0000661,370.40
Department of Health,Leicestershire Partnership NHS Trust,19/04/21,NURSE - BAND 2 - AGENCY,Beaumont Ward - Bradgate Unit,HCL NURSING,HNSI0000661,5599.83
Department of Health,Leicestershire Partnership NHS Trust,19/04/21,NURSE - BAND 5 - AGENCY,Beaumont Ward - Bradgate Unit,HCL NURSING,HNSI0000661,2080.42
Department of Health,Leicestershire Partnership NHS Trust,19/04/21,NURSE - BAND 2 - AGENCY,Belvoir Psychiatric Intensive Care Unit,HCL NURSING,HNSI0000661,4016.31
Department of Health,Leicestershire Partnership NHS Trust,19/04/21,NURSE - BAND 5 - AGENCY,Belvoir Psychiatric Intensive Care Unit,HCL NURSING,HNSI0000661,2080.42
Department of Health,Leicestershire Partnership NHS Trust,19/04/21,Nurse - Band 6 -Agency,Crisis Resolution,HCL NURSING,HNSI0000661,8609.77
Department of Health,Leicestershire Partnership NHS Trust,19/04/21,NURSE - BAND 5 - AGENCY,Griffin Ward (HPC),HCL NURSING,HNSI0000661,659.67
Department of Health,Leicestershire Partnership NHS Trust,19/04/21,NURSE - BAND 2 - AGENCY,Heather Ward,HCL NURSING,HNSI0000661,277.89
Department of Health,Leicestershire Partnership NHS Trust,19/04/21,Nurse - Band 6 -Agency,Mental Health Triage Team,HCL NURSING,HNSI0000661,3045.84
Department of Health,Leicestershire Partnership NHS Trust,19/04/21,NURSE - BAND 2 - AGENCY,Mill Lodge,HCL NURSING,HNSI0000661,1692.55
Department of Health,Leicestershire Partnership NHS Trust,19/04/21,NURSE - BAND 5 - AGENCY,Mill Lodge,HCL NURSING,HNSI0000661,3106.79
Department of Health,Leicestershire Partnership NHS Trust,19/04/21,NURSE - BAND 2 - AGENCY,Phoenix Ward (HPC),HCL NURSING,HNSI0000661,890.44
Department of Health,Leicestershire Partnership NHS Trust,19/04/21,NURSE - BAND 5 - AGENCY,Phoenix Ward (HPC),HCL NURSING,HNSI0000661,1130.14
Department of Health,Leicestershire Partnership NHS Trust,19/04/21,NURSE - BAND 2 - AGENCY,Place Of Safety Assessment Unit,HCL NURSING,HNSI0000661,223.28
Department of Health,Leicestershire Partnership NHS Trust,19/04/21,NURSE - BAND 5 - AGENCY,Place Of Safety Assessment Unit,HCL NURSING,HNSI0000661,676.57
Department of Health,Leicestershire Partnership NHS Trust,19/04/21,NURSE - BAND 2 - AGENCY,Stewart House,HCL NURSING,HNSI0000661,825.13
Department of Health,Leicestershire Partnership NHS Trust,19/04/21,NURSE - BAND 5 - AGENCY,Stewart House,HCL NURSING,HNSI0000661,1303.94
Department of Health,Leicestershire Partnership NHS Trust,19/04/21,NURSE - BAND 5 - AGENCY,Thornton Ward - Bradgate Unit,HCL NURSING,HNSI0000661,370.40
Department of Health,Leicestershire Partnership NHS Trust,19/04/21,Nurse - Band 6 -Agency,CAMHS Waiting List Monies,HCL SOCIAL CARE,HWSI0000453,24249.73
Department of Health,Leicestershire Partnership NHS Trust,19/04/21,Landline Telephone Rental / Calls,"Beaumont Leys Health Centre (P94, LPT)",VIRGIN MEDIA BUSINESS,853083001/004/0421,363.82
Department of Health,Leicestershire Partnership NHS Trust,19/04/21,Landline Telephone Rental / Calls,Belgrave Health Centre (CHP),VIRGIN MEDIA BUSINESS,853083001/004/0421,318.93
Department of Health,Leicestershire Partnership NHS Trust,19/04/21,Landline Telephone Rental / Calls,"Bennion Centre (including Forest Grange Day Unit) (P8, LPT)",VIRGIN MEDIA BUSINESS,853083001/004/0421,7.74
Department of Health,Leicestershire Partnership NHS Trust,19/04/21,Landline Telephone Rental / Calls,"Bradgate Unit (including Glenvale day Unit) (P7, LPT)",VIRGIN MEDIA BUSINESS,853083001/004/0421,9721.21
Department of Health,Leicestershire Partnership NHS Trust,19/04/21,Landline Telephone Rental / Calls,Braunstone Health and Social Care Centre (Part) (PROPCO),VIRGIN MEDIA BUSINESS,853083001/004/0421,1007.48
Department of Health,Leicestershire Partnership NHS Trust,19/04/21,Landline Telephone Rental / Calls,Bridge Park Plaza - First Floor (LPT),VIRGIN MEDIA BUSINESS,853083001/004/0421,4382.39
Department of Health,Leicestershire Partnership NHS Trust,19/04/21,Landline Telephone Rental / Calls,"Coalville Community Hospital (P138, LPT)",VIRGIN MEDIA BUSINESS,853083001/004/0421,1500.83
Department of Health,Leicestershire Partnership NHS Trust,19/04/21,Landline Telephone Rental / Calls,"Coalville Health Centre (P121, LPT)",VIRGIN MEDIA BUSINESS,853083001/004/0421,144.08
Department of Health,Leicestershire Partnership NHS Trust,19/04/21,Landline Telephone Rental / Calls,County Hall,VIRGIN MEDIA BUSINESS,853083001/004/0421,6671.84
Department of Health,Leicestershire Partnership NHS Trust,19/04/21,Landline Telephone Rental / Calls,Estates & Facilities Central,VIRGIN MEDIA BUSINESS,853083001/004/0421,688.87
Department of Health,Leicestershire Partnership NHS Trust,19/04/21,Landline Telephone Rental / Calls,"Evington Centre (P6, LPT)",VIRGIN MEDIA BUSINESS,853083001/004/0421,1817.63
Department of Health,Leicestershire Partnership NHS Trust,19/04/21,Landline Telephone Rental / Calls,HIS,VIRGIN MEDIA BUSINESS,853083001/004/0421,2978.39
Department of Health,Leicestershire Partnership NHS Trust,19/04/21,Landline Telephone Rental / Calls,"Hawthorne Centre - Coalville (P14, LPT)",VIRGIN MEDIA BUSINESS,853083001/004/0421,546.64
Department of Health,Leicestershire Partnership NHS Trust,19/04/21,Landline Telephone Rental / Calls,Hinckley & District Hospital (PROPCO),VIRGIN MEDIA BUSINESS,853083001/004/0421,1143.14
Department of Health,Leicestershire Partnership NHS Trust,19/04/21,Landline Telephone Rental / Calls,"Hinckley and Bosworth Community Hospital (Sunnyside) (P133, LPT)",VIRGIN MEDIA BUSINESS,853083001/004/0421,1025.39
Department of Health,Leicestershire Partnership NHS Trust,19/04/21,Landline Telephone Rental / Calls,Hood Park Leisure Centre Clinic,VIRGIN MEDIA BUSINESS,853083001/004/0421,23.22
Department of Health,Leicestershire Partnership NHS Trust,19/04/21,Landline Telephone Rental / Calls,"Hynca Lodge (P33, LPT)",VIRGIN MEDIA BUSINESS,853083001/004/0421,375.80
Department of Health,Leicestershire Partnership NHS Trust,19/04/21,Landline Telephone Rental / Calls,"Legion House, Ashby",VIRGIN MEDIA BUSINESS,853083001/004/0421,53.12
Department of Health,Leicestershire Partnership NHS Trust,19/04/21,Landline Telephone Rental / Calls,Loughborough Health Centre (PROPCO),VIRGIN MEDIA BUSINESS,853083001/004/0421,8.11
Department of Health,Leicestershire Partnership NHS Trust,19/04/21,Landline Telephone Rental / Calls,"Loughborough Hospital (P136, LPT)",VIRGIN MEDIA BUSINESS,853083001/004/0421,5104.88
Department of Health,Leicestershire Partnership NHS Trust,19/04/21,Landline Telephone Rental / Calls,Mawson House (LPT),VIRGIN MEDIA BUSINESS,853083001/004/0421,533.77
Department of Health,Leicestershire Partnership NHS Trust,19/04/21,Landline Telephone Rental / Calls,Melbourne Centre (Pt Grnd flr) (PROPCO),VIRGIN MEDIA BUSINESS,853083001/004/0421,6.45
Department of Health,Leicestershire Partnership NHS Trust,19/04/21,Landline Telephone Rental / Calls,Melton Mowbray Hospital (previously St. Mary's) (PROPCO),VIRGIN MEDIA BUSINESS,853083001/004/0421,1583.46
Department of Health,Leicestershire Partnership NHS Trust,19/04/21,Landline Telephone Rental / Calls,Merlyn Vaz Centre (CHP),VIRGIN MEDIA BUSINESS,853083001/004/0421,1384.85
Department of Health,Leicestershire Partnership NHS Trust,19/04/21,Landline Telephone Rental / Calls,"Mett Centre (P49, LPT)",VIRGIN MEDIA BUSINESS,853083001/004/0421,78.22
Department of Health,Leicestershire Partnership NHS Trust,19/04/21,Landline Telephone Rental / Calls,NSPCC Training Cente,VIRGIN MEDIA BUSINESS,853083001/004/0421,159.96
Department of Health,Leicestershire Partnership NHS Trust,19/04/21,Landline Telephone Rental / Calls,New Parks Health Centre (PROPCO),VIRGIN MEDIA BUSINESS,853083001/004/0421,1605.62
Department of Health,Leicestershire Partnership NHS Trust,19/04/21,Landline Telephone Rental / Calls,"OSL House (P54, LPT)",VIRGIN MEDIA BUSINESS,853083001/004/0421,1666.59
Department of Health,Leicestershire Partnership NHS Trust,19/04/21,Landline Telephone Rental / Calls,"Orchard Resource Centre (P15, LPT)",VIRGIN MEDIA BUSINESS,853083001/004/0421,795.72
Department of Health,Leicestershire Partnership NHS Trust,19/04/21,Landline Telephone Rental / Calls,Pasley Road Health Centre (PROPCO),VIRGIN MEDIA BUSINESS,853083001/004/0421,98.51
Department of Health,Leicestershire Partnership NHS Trust,19/04/21,Landline Telephone Rental / Calls,"Prince Philip House (P96, LPT)",VIRGIN MEDIA BUSINESS,853083001/004/0421,1588.21
Department of Health,Leicestershire Partnership NHS Trust,19/04/21,Landline Telephone Rental / Calls,Rushey Mead Health Centre (PROPCO),VIRGIN MEDIA BUSINESS,853083001/004/0421,115.40
Department of Health,Leicestershire Partnership NHS Trust,19/04/21,Landline Telephone Rental / Calls,"Shepshed Health Centre (P123, LPT)",VIRGIN MEDIA BUSINESS,853083001/004/0421,9.74
Department of Health,Leicestershire Partnership NHS Trust,19/04/21,Landline Telephone Rental / Calls,"Springfield Road Health Centre (P92, LPT)",VIRGIN MEDIA BUSINESS,853083001/004/0421,400.27
Department of Health,Leicestershire Partnership NHS Trust,19/04/21,Landline Telephone Rental / Calls,"St Peters Health Center (Part 1st and 2nd floors) (P66, LPT)",VIRGIN MEDIA BUSINESS,853083001/004/0421,2043.42
Department of Health,Leicestershire Partnership NHS Trust,19/04/21,Landline Telephone Rental / Calls,"Stewart House (P61, LPT)",VIRGIN MEDIA BUSINESS,853083001/004/0421,7.74
Department of Health,Leicestershire Partnership NHS Trust,19/04/21,Landline Telephone Rental / Calls,"Swithland House - London Road 352 (P44, LPT)",VIRGIN MEDIA BUSINESS,853083001/004/0421,448.90
Department of Health,Leicestershire Partnership NHS Trust,19/04/21,Landline Telephone Rental / Calls,"The Cedars (P19, LPT)",VIRGIN MEDIA BUSINESS,853083001/004/0421,766.61
Department of Health,Leicestershire Partnership NHS Trust,19/04/21,Landline Telephone Rental / Calls,"The Willows - Cordelia Close (P22, LPT)",VIRGIN MEDIA BUSINESS,853083001/004/0421,462.76
Department of Health,Leicestershire Partnership NHS Trust,19/04/21,Landline Telephone Rental / Calls,Uppingham Road Health Centre (PROPCO),VIRGIN MEDIA BUSINESS,853083001/004/0421,237.50
Department of Health,Leicestershire Partnership NHS Trust,19/04/21,Landline Telephone Rental / Calls,"Valentine Centre (P3, LPT)",VIRGIN MEDIA BUSINESS,853083001/004/0421,1959.83
Department of Health,Leicestershire Partnership NHS Trust,19/04/21,Landline Telephone Rental / Calls,Warren Park Way 25 (PROPCO),VIRGIN MEDIA BUSINESS,853083001/004/0421,782.95
Department of Health,Leicestershire Partnership NHS Trust,19/04/21,Landline Telephone Rental / Calls,"Westcotes Group -Westcotes House (P78, LPT)",VIRGIN MEDIA BUSINESS,853083001/004/0421,1489.43
Department of Health,Leicestershire Partnership NHS Trust,19/04/21,Landline Telephone Rental / Calls,Westcotes Health Centre (CHP),VIRGIN MEDIA BUSINESS,853083001/004/0421,768.21
Department of Health,Leicestershire Partnership NHS Trust,19/04/21,Landline Telephone Rental / Calls,"Winstanley Drive Health Centre (P8, LPT)",VIRGIN MEDIA BUSINESS,853083001/004/0421,405.98
Department of Health,Leicestershire Partnership NHS Trust,19/04/21,Crs_NHS_LT1y -Resus Inventory Supplied.,Balance Sheet Collection,SUPPLY CHAIN CO LTD,1122005274,41424.26
Department of Health,Leicestershire Partnership NHS Trust,20/04/21,FP10'S,Adult City Drugs,NHS BUS SERVICES AUTHORITY,1000068873,23384.05
Department of Health,Leicestershire Partnership NHS Trust,20/04/21,FP10'S,Adult County Drugs,NHS BUS SERVICES AUTHORITY,1000068873,20355.64
Department of Health,Leicestershire Partnership NHS Trust,20/04/21,FP10'S,Adult County North West Leicestershire CMHT,NHS BUS SERVICES AUTHORITY,1000068873,143.35
Department of Health,Leicestershire Partnership NHS Trust,20/04/21,FP10'S,CAMHS Outpatients,NHS BUS SERVICES AUTHORITY,1000068873,19526.08
Department of Health,Leicestershire Partnership NHS Trust,20/04/21,FP10'S,Children Services Medical,NHS BUS SERVICES AUTHORITY,1000068873,16434.18
Department of Health,Leicestershire Partnership NHS Trust,20/04/21,FP10'S,Dementia Related Drugs and Investigations,NHS BUS SERVICES AUTHORITY,1000068873,2443.02
Department of Health,Leicestershire Partnership NHS Trust,20/04/21,FP10'S,Eating Disorders Outpatient Service,NHS BUS SERVICES AUTHORITY,1000068873,795.26
Department of Health,Leicestershire Partnership NHS Trust,20/04/21,FP10'S,Evington Centre,NHS BUS SERVICES AUTHORITY,1000068873,2.36
Department of Health,Leicestershire Partnership NHS Trust,20/04/21,FP10'S,Forensic Services - Community,NHS BUS SERVICES AUTHORITY,1000068873,57.89
Department of Health,Leicestershire Partnership NHS Trust,20/04/21,FP10'S,LOROS Pharmacy,NHS BUS SERVICES AUTHORITY,1000068873,232.50
Department of Health,Leicestershire Partnership NHS Trust,20/04/21,FP10'S,Liason Psychiatry Service,NHS BUS SERVICES AUTHORITY,1000068873,68.16
Department of Health,Leicestershire Partnership NHS Trust,20/04/21,FP10'S,PIER Team - Early Intervention Services,NHS BUS SERVICES AUTHORITY,1000068873,11306.12
Department of Health,Leicestershire Partnership NHS Trust,20/04/21,FP10'S,Snr Med Staff (Inc Med Reps),NHS BUS SERVICES AUTHORITY,1000068873,3715.30
Department of Health,Leicestershire Partnership NHS Trust,20/04/21,Med GP Trainees,Medical Trainees,ST.HELENS & KNOWSLEY NHS TRUST,16804711,75000.00
Department of Health,Leicestershire Partnership NHS Trust,21/04/21,Telephone equipment,"LGH - Gwendolen House (P4, LPT)",VIRGIN MEDIA BUSINESS,60045401,37509.90
Department of Health,Leicestershire Partnership NHS Trust,21/04/21,Computer Software,Intergrated Information Team,SOFTCAT PLC,INV02900781,44160.00
Department of Health,Leicestershire Partnership NHS Trust,22/04/21,Nurse - Band 6 -Agency,AMH - Central Access Point,HCL NURSING,HNSI0000649,650.08
Department of Health,Leicestershire Partnership NHS Trust,22/04/21,NURSE - BAND 2 - AGENCY,Acacia (Willows),HCL NURSING,HNSI0000649,174.73
Department of Health,Leicestershire Partnership NHS Trust,22/04/21,Nurse - Band 6 -Agency,Adult City East CMHT - Merlyn Vaz,HCL NURSING,HNSI0000649,4946.67
Department of Health,Leicestershire Partnership NHS Trust,22/04/21,Nurse - Band 6 -Agency,Adult County Charnwood CMHT - Loughborough Base,HCL NURSING,HNSI0000649,1348.16
Department of Health,Leicestershire Partnership NHS Trust,22/04/21,Nurse - Band 6 -Agency,Adult County West Leicestershire CMHT,HCL NURSING,HNSI0000649,2139.93
Department of Health,Leicestershire Partnership NHS Trust,22/04/21,NURSE - BAND 2 - AGENCY,Agnes Unit Management,HCL NURSING,HNSI0000649,14500.68
Department of Health,Leicestershire Partnership NHS Trust,22/04/21,NURSE - BAND 5 - AGENCY,Agnes Unit Management,HCL NURSING,HNSI0000649,9913.86
Department of Health,Leicestershire Partnership NHS Trust,22/04/21,NURSE - BAND 2 - AGENCY,Ashby Ward (Bradgate Unit),HCL NURSING,HNSI0000649,638.66
Department of Health,Leicestershire Partnership NHS Trust,22/04/21,NURSE - BAND 2 - AGENCY,Aston Ward (Bradgate Unit),HCL NURSING,HNSI0000649,432.72
Department of Health,Leicestershire Partnership NHS Trust,22/04/21,NURSE - BAND 5 - AGENCY,Aston Ward (Bradgate Unit),HCL NURSING,HNSI0000649,1079.48
Department of Health,Leicestershire Partnership NHS Trust,22/04/21,NURSE - BAND 2 - AGENCY,Beaumont Ward - Bradgate Unit,HCL NURSING,HNSI0000649,1730.36
Department of Health,Leicestershire Partnership NHS Trust,22/04/21,NURSE - BAND 5 - AGENCY,Beaumont Ward - Bradgate Unit,HCL NURSING,HNSI0000649,987.24
Department of Health,Leicestershire Partnership NHS Trust,22/04/21,NURSE - BAND 2 - AGENCY,Belvoir Psychiatric Intensive Care Unit,HCL NURSING,HNSI0000649,1223.10
Department of Health,Leicestershire Partnership NHS Trust,22/04/21,NURSE - BAND 5 - AGENCY,Belvoir Psychiatric Intensive Care Unit,HCL NURSING,HNSI0000649,1729.01
Department of Health,Leicestershire Partnership NHS Trust,22/04/21,Nurse - Band 6 -Agency,Crisis Resolution,HCL NURSING,HNSI0000649,3797.72
Department of Health,Leicestershire Partnership NHS Trust,22/04/21,NURSE - BAND 5 - AGENCY,Griffin Ward (HPC),HCL NURSING,HNSI0000649,1186.14
Department of Health,Leicestershire Partnership NHS Trust,22/04/21,NURSE - BAND 2 - AGENCY,Heather Ward,HCL NURSING,HNSI0000649,1876.97
Department of Health,Leicestershire Partnership NHS Trust,22/04/21,NURSE - BAND 5 - AGENCY,Heather Ward,HCL NURSING,HNSI0000649,329.84
Department of Health,Leicestershire Partnership NHS Trust,22/04/21,Nurse - Band 6 -Agency,Mental Health Triage Team,HCL NURSING,HNSI0000649,759.38
Department of Health,Leicestershire Partnership NHS Trust,22/04/21,NURSE - BAND 2 - AGENCY,Mill Lodge,HCL NURSING,HNSI0000649,1388.82
Department of Health,Leicestershire Partnership NHS Trust,22/04/21,NURSE - BAND 5 - AGENCY,Mill Lodge,HCL NURSING,HNSI0000649,1033.18
Department of Health,Leicestershire Partnership NHS Trust,22/04/21,NURSE - BAND 2 - AGENCY,Phoenix Ward (HPC),HCL NURSING,HNSI0000649,223.59
Department of Health,Leicestershire Partnership NHS Trust,22/04/21,NURSE - BAND 5 - AGENCY,Phoenix Ward (HPC),HCL NURSING,HNSI0000649,363.64
Department of Health,Leicestershire Partnership NHS Trust,22/04/21,NURSE - BAND 2 - AGENCY,Stewart House,HCL NURSING,HNSI0000649,967.62
Department of Health,Leicestershire Partnership NHS Trust,22/04/21,NURSE - BAND 5 - AGENCY,Stewart House,HCL NURSING,HNSI0000649,3376.93
Department of Health,Leicestershire Partnership NHS Trust,22/04/21,NURSE - BAND 2 - AGENCY,Thornton Ward - Bradgate Unit,HCL NURSING,HNSI0000649,174.73
Department of Health,Leicestershire Partnership NHS Trust,22/04/21,Nurse - Band 6 -Agency,CAMHS Waiting List Monies,HCL SOCIAL CARE,HWSI0000417,25884.51
Department of Health,Leicestershire Partnership NHS Trust,22/04/21,Water & Sewerage Charges,"Beaumont Leys Health Centre (P94, LPT)",WATER PLUS,0865005329/INV04774041,246.52
Department of Health,Leicestershire Partnership NHS Trust,22/04/21,Water & Sewerage Charges,Bridge Park Road (Unit C18) (LPT),WATER PLUS,0865005329/INV04774041,67.48
Department of Health,Leicestershire Partnership NHS Trust,22/04/21,Water & Sewerage Charges,"Bridge Park Road - Units 2 and 3 (P148, LPT)",WATER PLUS,0865005329/INV04774041,804.69
Department of Health,Leicestershire Partnership NHS Trust,22/04/21,Water & Sewerage Charges,"Coalville Community Hospital (P138, LPT)",WATER PLUS,0865005329/INV04774041,5641.68
Department of Health,Leicestershire Partnership NHS Trust,22/04/21,Water & Sewerage Charges,"Coalville Health Centre (P121, LPT)",WATER PLUS,0865005329/INV04774041,322.07
Department of Health,Leicestershire Partnership NHS Trust,22/04/21,Water & Sewerage Charges,"Evington Centre (P6, LPT)",WATER PLUS,0865005329/INV04774041,1921.46
Department of Health,Leicestershire Partnership NHS Trust,22/04/21,Water & Sewerage Charges,"Feilding Palmer Hospital (Lutterworth) (P131, LPT)",WATER PLUS,0865005329/INV04774041,43.42
Department of Health,Leicestershire Partnership NHS Trust,22/04/21,Water & Sewerage Charges,HIS,WATER PLUS,0865005329/INV04774041,59.63
Department of Health,Leicestershire Partnership NHS Trust,22/04/21,Water & Sewerage Charges,Hinckley & District Hospital (PROPCO),WATER PLUS,0865005329/INV04774041,142.14
Department of Health,Leicestershire Partnership NHS Trust,22/04/21,Water & Sewerage Charges,"Hinckley and Bosworth Community Hospital (Sunnyside) (P133, LPT)",WATER PLUS,0865005329/INV04774041,2368.64
Department of Health,Leicestershire Partnership NHS Trust,22/04/21,Water & Sewerage Charges,"Hynca Lodge (P33, LPT)",WATER PLUS,0865005329/INV04774041,181.83
Department of Health,Leicestershire Partnership NHS Trust,22/04/21,Water & Sewerage Charges,"Loughborough Hospital (P136, LPT)",WATER PLUS,0865005329/INV04774041,3726.69
Department of Health,Leicestershire Partnership NHS Trust,22/04/21,Water & Sewerage Charges,"Narborough Health Centre (P117, LPT)",WATER PLUS,0865005329/INV04774041,4681.30
Department of Health,Leicestershire Partnership NHS Trust,22/04/21,Water & Sewerage Charges,"OSL House (P54, LPT)",WATER PLUS,0865005329/INV04774041,344.07
Department of Health,Leicestershire Partnership NHS Trust,22/04/21,Water & Sewerage Charges,"Orchard Resource Centre (P15, LPT)",WATER PLUS,0865005329/INV04774041,411.24
Department of Health,Leicestershire Partnership NHS Trust,22/04/21,Water & Sewerage Charges,"Prince Philip House (P96, LPT)",WATER PLUS,0865005329/INV04774041,203.92
Department of Health,Leicestershire Partnership NHS Trust,22/04/21,Water & Sewerage Charges,Rothesay -  London Road 352A (LPT),WATER PLUS,0865005329/INV04774041,271.39
Department of Health,Leicestershire Partnership NHS Trust,22/04/21,Water & Sewerage Charges,"Rubicon Close 3 (P56, LPT)",WATER PLUS,0865005329/INV04774041,20.72
Department of Health,Leicestershire Partnership NHS Trust,22/04/21,Water & Sewerage Charges,"Rutland Memorial Hospital (P134, LPT)",WATER PLUS,0865005329/INV04774041,871.97
Department of Health,Leicestershire Partnership NHS Trust,22/04/21,Water & Sewerage Charges,"Shepshed Health Centre (P123, LPT)",WATER PLUS,0865005329/INV04774041,277.03
Department of Health,Leicestershire Partnership NHS Trust,22/04/21,Water & Sewerage Charges,"Springfield Road Health Centre (P92, LPT)",WATER PLUS,0865005329/INV04774041,225.50
Department of Health,Leicestershire Partnership NHS Trust,22/04/21,Water & Sewerage Charges,"Stewart House (P61, LPT)",WATER PLUS,0865005329/INV04774041,709.64
Department of Health,Leicestershire Partnership NHS Trust,22/04/21,Water & Sewerage Charges,"Swithland House - London Road 352 (P44, LPT)",WATER PLUS,0865005329/INV04774041,97.93
Department of Health,Leicestershire Partnership NHS Trust,22/04/21,Water & Sewerage Charges,"The Agnes Unit (AKA Assessment and Treatment Centre) (P85, LPT)",WATER PLUS,0865005329/INV04774041,728.14
Department of Health,Leicestershire Partnership NHS Trust,22/04/21,Water & Sewerage Charges,"The Cedars (P19, LPT)",WATER PLUS,0865005329/INV04774041,227.37
Department of Health,Leicestershire Partnership NHS Trust,22/04/21,Water & Sewerage Charges,"The Grange 1 (P4, LPT)",WATER PLUS,0865005329/INV04774041,88.22
Department of Health,Leicestershire Partnership NHS Trust,22/04/21,Water & Sewerage Charges,"The Grange 2 (P41, LPT)",WATER PLUS,0865005329/INV04774041,85.63
Department of Health,Leicestershire Partnership NHS Trust,22/04/21,Water & Sewerage Charges,"The Willows - Cordelia Close (P22, LPT)",WATER PLUS,0865005329/INV04774041,7148.96
Department of Health,Leicestershire Partnership NHS Trust,22/04/21,Water & Sewerage Charges,"Westcotes Group - Tanglewood Resource Centre (P77, LPT)",WATER PLUS,0865005329/INV04774041,131.89
Department of Health,Leicestershire Partnership NHS Trust,22/04/21,Water & Sewerage Charges,"Westcotes Group -Westcotes House (P78, LPT)",WATER PLUS,0865005329/INV04774041,96.61
Department of Health,Leicestershire Partnership NHS Trust,23/04/21,NURSE - BAND 2 - AGENCY,Beechwood Ward,HCL NURSING,HNSI0000655,452.62
Department of Health,Leicestershire Partnership NHS Trust,23/04/21,NURSE - BAND 5 - AGENCY,Beechwood Ward,HCL NURSING,HNSI0000655,553.33
Department of Health,Leicestershire Partnership NHS Trust,23/04/21,NURSE - BAND 5 - AGENCY,City Planned Care - East,HCL NURSING,HNSI0000655,5357.09
Department of Health,Leicestershire Partnership NHS Trust,23/04/21,NURSE - BAND 5 - AGENCY,City Planned Care - West,HCL NURSING,HNSI0000655,6498.37
Department of Health,Leicestershire Partnership NHS Trust,23/04/21,Nurse - Band 6 -Agency,City West CMHT MHSOP,HCL NURSING,HNSI0000655,641.98
Department of Health,Leicestershire Partnership NHS Trust,23/04/21,NURSE - BAND 2 - AGENCY,Clarendon Ward,HCL NURSING,HNSI0000655,2548.68
Department of Health,Leicestershire Partnership NHS Trust,23/04/21,NURSE - BAND 5 - AGENCY,Clarendon Ward,HCL NURSING,HNSI0000655,2814.46
Department of Health,Leicestershire Partnership NHS Trust,23/04/21,NURSE - BAND 2 - AGENCY,Coalville Snibston Ward,HCL NURSING,HNSI0000655,528.69
Department of Health,Leicestershire Partnership NHS Trust,23/04/21,NURSE - BAND 5 - AGENCY,Coalville Snibston Ward,HCL NURSING,HNSI0000655,806.41
Department of Health,Leicestershire Partnership NHS Trust,23/04/21,NURSE - BAND 2 - AGENCY,Coalville Ward 2,HCL NURSING,HNSI0000655,1285.10
Department of Health,Leicestershire Partnership NHS Trust,23/04/21,NURSE - BAND 2 - AGENCY,Coleman Ward,HCL NURSING,HNSI0000655,1483.13
Department of Health,Leicestershire Partnership NHS Trust,23/04/21,NURSE - BAND 5 - AGENCY,Coleman Ward,HCL NURSING,HNSI0000655,2875.15
Department of Health,Leicestershire Partnership NHS Trust,23/04/21,NURSE - BAND 2 - AGENCY,Dalgliesh Ward,HCL NURSING,HNSI0000655,1767.29
Department of Health,Leicestershire Partnership NHS Trust,23/04/21,NURSE - BAND 5 - AGENCY,Dalgliesh Ward,HCL NURSING,HNSI0000655,1267.73
Department of Health,Leicestershire Partnership NHS Trust,23/04/21,NURSE - BAND 2 - AGENCY,Gwendolen Ward,HCL NURSING,HNSI0000655,891.60
Department of Health,Leicestershire Partnership NHS Trust,23/04/21,NURSE - BAND 5 - AGENCY,Gwendolen Ward,HCL NURSING,HNSI0000655,4420.72
Department of Health,Leicestershire Partnership NHS Trust,23/04/21,NURSE - BAND 2 - AGENCY,H&B Comm Hosp East Ward,HCL NURSING,HNSI0000655,1489.41
Department of Health,Leicestershire Partnership NHS Trust,23/04/21,NURSE - BAND 2 - AGENCY,H&B Comm Hosp North Ward,HCL NURSING,HNSI0000655,277.89
Department of Health,Leicestershire Partnership NHS Trust,23/04/21,NURSE - BAND 5 - AGENCY,H&B Comm Hosp North Ward,HCL NURSING,HNSI0000655,1700.31
Department of Health,Leicestershire Partnership NHS Trust,23/04/21,NURSE - BAND 5 - AGENCY,Kirby Ward,HCL NURSING,HNSI0000655,1390.90
Department of Health,Leicestershire Partnership NHS Trust,23/04/21,NURSE - BAND 2 - AGENCY,Non Recurrent 2012/13,HCL NURSING,HNSI0000655,9369.98
Department of Health,Leicestershire Partnership NHS Trust,23/04/21,NURSE - BAND 5 - AGENCY,Non Recurrent 2012/13,HCL NURSING,HNSI0000655,5183.04
Department of Health,Leicestershire Partnership NHS Trust,23/04/21,NURSE - BAND 2 - AGENCY,Rutland Ward Nursing,HCL NURSING,HNSI0000655,2144.05
Department of Health,Leicestershire Partnership NHS Trust,23/04/21,Nurse - Band 6 -Agency,South Leicestershire CMHT MHSOP,HCL NURSING,HNSI0000655,979.36
Department of Health,Leicestershire Partnership NHS Trust,23/04/21,NURSE - BAND 2 - AGENCY,St Lukes Stroke Ward,HCL NURSING,HNSI0000655,975.87
Department of Health,Leicestershire Partnership NHS Trust,23/04/21,NURSE - BAND 5 - AGENCY,St Lukes Stroke Ward,HCL NURSING,HNSI0000655,1597.24
Department of Health,Leicestershire Partnership NHS Trust,23/04/21,NURSE - BAND 2 - AGENCY,St Lukes Ward 3,HCL NURSING,HNSI0000655,1308.05
Department of Health,Leicestershire Partnership NHS Trust,23/04/21,NURSE - BAND 5 - AGENCY,St Lukes Ward 3,HCL NURSING,HNSI0000655,22430.24
Department of Health,Leicestershire Partnership NHS Trust,23/04/21,NURSE - BAND 2 - AGENCY,Wakerley Ward,HCL NURSING,HNSI0000655,6956.16
Department of Health,Leicestershire Partnership NHS Trust,23/04/21,NURSE - BAND 5 - AGENCY,Wakerley Ward,HCL NURSING,HNSI0000655,5174.21
Department of Health,Leicestershire Partnership NHS Trust,23/04/21,NURSE - BAND 2 - AGENCY,Welford Ward,HCL NURSING,HNSI0000655,300.95
Department of Health,Leicestershire Partnership NHS Trust,23/04/21,NURSE - BAND 5 - AGENCY,Welford Ward,HCL NURSING,HNSI0000655,722.41
Department of Health,Leicestershire Partnership NHS Trust,23/04/21,NURSE - BAND 2 - AGENCY,Beechwood Ward,HCL NURSING,HNSI0000662,1798.09
Department of Health,Leicestershire Partnership NHS Trust,23/04/21,NURSE - BAND 5 - AGENCY,Beechwood Ward,HCL NURSING,HNSI0000662,1694.76
Department of Health,Leicestershire Partnership NHS Trust,23/04/21,NURSE - BAND 5 - AGENCY,City Planned Care - East,HCL NURSING,HNSI0000662,11750.14
Department of Health,Leicestershire Partnership NHS Trust,23/04/21,NURSE - BAND 5 - AGENCY,City Planned Care - West,HCL NURSING,HNSI0000662,12247.54
Department of Health,Leicestershire Partnership NHS Trust,23/04/21,Nurse - Band 6 -Agency,City West CMHT MHSOP,HCL NURSING,HNSI0000662,1906.97
Department of Health,Leicestershire Partnership NHS Trust,23/04/21,NURSE - BAND 2 - AGENCY,Clarendon Ward,HCL NURSING,HNSI0000662,1644.42
Department of Health,Leicestershire Partnership NHS Trust,23/04/21,NURSE - BAND 5 - AGENCY,Clarendon Ward,HCL NURSING,HNSI0000662,3509.13
Department of Health,Leicestershire Partnership NHS Trust,23/04/21,NURSE - BAND 2 - AGENCY,Coalville Snibston Ward,HCL NURSING,HNSI0000662,1054.64
Department of Health,Leicestershire Partnership NHS Trust,23/04/21,NURSE - BAND 2 - AGENCY,Coalville Ward 2,HCL NURSING,HNSI0000662,913.40
Department of Health,Leicestershire Partnership NHS Trust,23/04/21,NURSE - BAND 2 - AGENCY,Coleman Ward,HCL NURSING,HNSI0000662,1652.29
Department of Health,Leicestershire Partnership NHS Trust,23/04/21,NURSE - BAND 5 - AGENCY,Coleman Ward,HCL NURSING,HNSI0000662,3216.24
Department of Health,Leicestershire Partnership NHS Trust,23/04/21,NURSE - BAND 2 - AGENCY,Dalgliesh Ward,HCL NURSING,HNSI0000662,1411.07
Department of Health,Leicestershire Partnership NHS Trust,23/04/21,NURSE - BAND 5 - AGENCY,Dalgliesh Ward,HCL NURSING,HNSI0000662,2405.10
Department of Health,Leicestershire Partnership NHS Trust,23/04/21,NURSE - BAND 2 - AGENCY,Gwendolen Ward,HCL NURSING,HNSI0000662,1936.53
Department of Health,Leicestershire Partnership NHS Trust,23/04/21,NURSE - BAND 5 - AGENCY,Gwendolen Ward,HCL NURSING,HNSI0000662,3692.79
Department of Health,Leicestershire Partnership NHS Trust,23/04/21,NURSE - BAND 5 - AGENCY,H&B Comm Hosp East Ward,HCL NURSING,HNSI0000662,1049.88
Department of Health,Leicestershire Partnership NHS Trust,23/04/21,NURSE - BAND 2 - AGENCY,H&B Comm Hosp North Ward,HCL NURSING,HNSI0000662,254.79
Department of Health,Leicestershire Partnership NHS Trust,23/04/21,NURSE - BAND 5 - AGENCY,H&B Comm Hosp North Ward,HCL NURSING,HNSI0000662,2451.65
Department of Health,Leicestershire Partnership NHS Trust,23/04/21,NURSE - BAND 2 - AGENCY,Kirby Ward,HCL NURSING,HNSI0000662,250.64
Department of Health,Leicestershire Partnership NHS Trust,23/04/21,NURSE - BAND 5 - AGENCY,Lough Swithland Ward,HCL NURSING,HNSI0000662,1956.14
Department of Health,Leicestershire Partnership NHS Trust,23/04/21,NURSE - BAND 2 - AGENCY,Non Recurrent 2012/13,HCL NURSING,HNSI0000662,341.79
Department of Health,Leicestershire Partnership NHS Trust,23/04/21,NURSE - BAND 5 - AGENCY,Non Recurrent 2012/13,HCL NURSING,HNSI0000662,2576.72
Department of Health,Leicestershire Partnership NHS Trust,23/04/21,NURSE - BAND 2 - AGENCY,Rutland Ward Nursing,HCL NURSING,HNSI0000662,1765.60
Department of Health,Leicestershire Partnership NHS Trust,23/04/21,Nurse - Band 6 -Agency,South Leicestershire CMHT MHSOP,HCL NURSING,HNSI0000662,1715.16
Department of Health,Leicestershire Partnership NHS Trust,23/04/21,NURSE - BAND 2 - AGENCY,St Lukes Stroke Ward,HCL NURSING,HNSI0000662,797.64
Department of Health,Leicestershire Partnership NHS Trust,23/04/21,NURSE - BAND 5 - AGENCY,St Lukes Stroke Ward,HCL NURSING,HNSI0000662,756.45
Department of Health,Leicestershire Partnership NHS Trust,23/04/21,NURSE - BAND 2 - AGENCY,St Lukes Ward 3,HCL NURSING,HNSI0000662,1526.11
Department of Health,Leicestershire Partnership NHS Trust,23/04/21,NURSE - BAND 5 - AGENCY,St Lukes Ward 3,HCL NURSING,HNSI0000662,1077.86
Department of Health,Leicestershire Partnership NHS Trust,23/04/21,NURSE - BAND 2 - AGENCY,Wakerley Ward,HCL NURSING,HNSI0000662,3070.10
Department of Health,Leicestershire Partnership NHS Trust,23/04/21,NURSE - BAND 5 - AGENCY,Wakerley Ward,HCL NURSING,HNSI0000662,5928.54
Department of Health,Leicestershire Partnership NHS Trust,26/04/21,Nurse - Band 6 -Agency,AMH - Central Access Point,HCL NURSING,HNSI0000667,342.39
Department of Health,Leicestershire Partnership NHS Trust,26/04/21,Nurse - Band 6 -Agency,Adult City East CMHT - Merlyn Vaz,HCL NURSING,HNSI0000667,1069.97
Department of Health,Leicestershire Partnership NHS Trust,26/04/21,Nurse - Band 6 -Agency,Adult County Charnwood CMHT - Loughborough Base,HCL NURSING,HNSI0000667,855.97
Department of Health,Leicestershire Partnership NHS Trust,26/04/21,Nurse - Band 6 -Agency,Adult County West Leicestershire CMHT,HCL NURSING,HNSI0000667,2546.52
Department of Health,Leicestershire Partnership NHS Trust,26/04/21,NURSE - BAND 2 - AGENCY,Agnes Unit Management,HCL NURSING,HNSI0000667,11262.44
Department of Health,Leicestershire Partnership NHS Trust,26/04/21,NURSE - BAND 5 - AGENCY,Agnes Unit Management,HCL NURSING,HNSI0000667,6972.88
Department of Health,Leicestershire Partnership NHS Trust,26/04/21,NURSE - BAND 2 - AGENCY,Ashby Ward (Bradgate Unit),HCL NURSING,HNSI0000667,452.62
Department of Health,Leicestershire Partnership NHS Trust,26/04/21,NURSE - BAND 2 - AGENCY,Aston Ward (Bradgate Unit),HCL NURSING,HNSI0000667,1263.49
Department of Health,Leicestershire Partnership NHS Trust,26/04/21,NURSE - BAND 2 - AGENCY,Beaumont Ward - Bradgate Unit,HCL NURSING,HNSI0000667,5686.23
Department of Health,Leicestershire Partnership NHS Trust,26/04/21,NURSE - BAND 5 - AGENCY,Beaumont Ward - Bradgate Unit,HCL NURSING,HNSI0000667,1093.14
Department of Health,Leicestershire Partnership NHS Trust,26/04/21,NURSE - BAND 2 - AGENCY,Belvoir Psychiatric Intensive Care Unit,HCL NURSING,HNSI0000667,1390.88
Department of Health,Leicestershire Partnership NHS Trust,26/04/21,NURSE - BAND 5 - AGENCY,Belvoir Psychiatric Intensive Care Unit,HCL NURSING,HNSI0000667,1040.21
Department of Health,Leicestershire Partnership NHS Trust,26/04/21,Nurse - Band 6 -Agency,Crisis Resolution,HCL NURSING,HNSI0000667,1812.27
Department of Health,Leicestershire Partnership NHS Trust,26/04/21,NURSE - BAND 2 - AGENCY,Griffin Ward (HPC),HCL NURSING,HNSI0000667,514.54
Department of Health,Leicestershire Partnership NHS Trust,26/04/21,NURSE - BAND 5 - AGENCY,Griffin Ward (HPC),HCL NURSING,HNSI0000667,329.84
Department of Health,Leicestershire Partnership NHS Trust,26/04/21,NURSE - BAND 2 - AGENCY,Heather Ward,HCL NURSING,HNSI0000667,912.18
Department of Health,Leicestershire Partnership NHS Trust,26/04/21,NURSE - BAND 5 - AGENCY,Heather Ward,HCL NURSING,HNSI0000667,659.68
Department of Health,Leicestershire Partnership NHS Trust,26/04/21,NURSE - BAND 2 - AGENCY,Maple Ward,HCL NURSING,HNSI0000667,1016.60
Department of Health,Leicestershire Partnership NHS Trust,26/04/21,Nurse - Band 6 -Agency,Mental Health Triage Team,HCL NURSING,HNSI0000667,1872.95
Department of Health,Leicestershire Partnership NHS Trust,26/04/21,NURSE - BAND 2 - AGENCY,Mill Lodge,HCL NURSING,HNSI0000667,2637.67
Department of Health,Leicestershire Partnership NHS Trust,26/04/21,NURSE - BAND 5 - AGENCY,Mill Lodge,HCL NURSING,HNSI0000667,2208.32
Department of Health,Leicestershire Partnership NHS Trust,26/04/21,NURSE - BAND 5 - AGENCY,Phoenix Ward (HPC),HCL NURSING,HNSI0000667,659.67
Department of Health,Leicestershire Partnership NHS Trust,26/04/21,NURSE - BAND 2 - AGENCY,Place Of Safety Assessment Unit,HCL NURSING,HNSI0000667,808.26
Department of Health,Leicestershire Partnership NHS Trust,26/04/21,NURSE - BAND 2 - AGENCY,Stewart House,HCL NURSING,HNSI0000667,243.06
Department of Health,Leicestershire Partnership NHS Trust,26/04/21,NURSE - BAND 5 - AGENCY,Stewart House,HCL NURSING,HNSI0000667,1304.20
Department of Health,Leicestershire Partnership NHS Trust,26/04/21,NURSE - BAND 2 - AGENCY,Thornton Ward - Bradgate Unit,HCL NURSING,HNSI0000667,174.73
Department of Health,Leicestershire Partnership NHS Trust,26/04/21,NURSE - BAND 2 - AGENCY,Watermead Ward (Bradgate Unit),HCL NURSING,HNSI0000667,150.21
Department of Health,Leicestershire Partnership NHS Trust,26/04/21,NURSE - BAND 5 - AGENCY,Watermead Ward (Bradgate Unit),HCL NURSING,HNSI0000667,2227.11
Department of Health,Leicestershire Partnership NHS Trust,26/04/21,Nurse - Band 6 -Agency,CAMHS Waiting List Monies,HCL SOCIAL CARE,HWSI0000465,35181.39
Department of Health,Leicestershire Partnership NHS Trust,26/04/21,NURSE - BAND 2 - AGENCY,Beechwood Ward,HCL NURSING,HNSI0000668,786.31
Department of Health,Leicestershire Partnership NHS Trust,26/04/21,NURSE - BAND 5 - AGENCY,Beechwood Ward,HCL NURSING,HNSI0000668,959.54
Department of Health,Leicestershire Partnership NHS Trust,26/04/21,NURSE - BAND 5 - AGENCY,City Planned Care - East,HCL NURSING,HNSI0000668,15814.51
Department of Health,Leicestershire Partnership NHS Trust,26/04/21,NURSE - BAND 5 - AGENCY,City Planned Care - West,HCL NURSING,HNSI0000668,11247.00
Department of Health,Leicestershire Partnership NHS Trust,26/04/21,Nurse - Band 6 -Agency,City West CMHT MHSOP,HCL NURSING,HNSI0000668,1906.97
Department of Health,Leicestershire Partnership NHS Trust,26/04/21,NURSE - BAND 2 - AGENCY,Clarendon Ward,HCL NURSING,HNSI0000668,1017.26
Department of Health,Leicestershire Partnership NHS Trust,26/04/21,NURSE - BAND 5 - AGENCY,Clarendon Ward,HCL NURSING,HNSI0000668,1679.50
Department of Health,Leicestershire Partnership NHS Trust,26/04/21,NURSE - BAND 2 - AGENCY,Coalville Snibston Ward,HCL NURSING,HNSI0000668,1594.86
Department of Health,Leicestershire Partnership NHS Trust,26/04/21,NURSE - BAND 5 - AGENCY,Coalville Snibston Ward,HCL NURSING,HNSI0000668,220.90
Department of Health,Leicestershire Partnership NHS Trust,26/04/21,NURSE - BAND 2 - AGENCY,Coalville Ward 2,HCL NURSING,HNSI0000668,1170.18
Department of Health,Leicestershire Partnership NHS Trust,26/04/21,NURSE - BAND 5 - AGENCY,Coalville Ward 2,HCL NURSING,HNSI0000668,393.34
Department of Health,Leicestershire Partnership NHS Trust,26/04/21,NURSE - BAND 2 - AGENCY,Coleman Ward,HCL NURSING,HNSI0000668,4007.54
Department of Health,Leicestershire Partnership NHS Trust,26/04/21,NURSE - BAND 5 - AGENCY,Coleman Ward,HCL NURSING,HNSI0000668,2812.98
Department of Health,Leicestershire Partnership NHS Trust,26/04/21,NURSE - BAND 2 - AGENCY,Dalgliesh Ward,HCL NURSING,HNSI0000668,605.54
Department of Health,Leicestershire Partnership NHS Trust,26/04/21,NURSE - BAND 5 - AGENCY,Dalgliesh Ward,HCL NURSING,HNSI0000668,799.12
Department of Health,Leicestershire Partnership NHS Trust,26/04/21,NURSE - BAND 2 - AGENCY,Gwendolen Ward,HCL NURSING,HNSI0000668,863.16
Department of Health,Leicestershire Partnership NHS Trust,26/04/21,NURSE - BAND 5 - AGENCY,Gwendolen Ward,HCL NURSING,HNSI0000668,4442.83
Department of Health,Leicestershire Partnership NHS Trust,26/04/21,NURSE - BAND 2 - AGENCY,H&B Comm Hosp East Ward,HCL NURSING,HNSI0000668,901.33
Department of Health,Leicestershire Partnership NHS Trust,26/04/21,NURSE - BAND 5 - AGENCY,H&B Comm Hosp East Ward,HCL NURSING,HNSI0000668,3522.31
Department of Health,Leicestershire Partnership NHS Trust,26/04/21,NURSE - BAND 5 - AGENCY,H&B Comm Hosp North Ward,HCL NURSING,HNSI0000668,1046.94
Department of Health,Leicestershire Partnership NHS Trust,26/04/21,NURSE - BAND 2 - AGENCY,Kirby Ward,HCL NURSING,HNSI0000668,328.32
Department of Health,Leicestershire Partnership NHS Trust,26/04/21,NURSE - BAND 5 - AGENCY,Kirby Ward,HCL NURSING,HNSI0000668,302.60
Department of Health,Leicestershire Partnership NHS Trust,26/04/21,NURSE - BAND 5 - AGENCY,Lough Swithland Ward,HCL NURSING,HNSI0000668,764.23
Department of Health,Leicestershire Partnership NHS Trust,26/04/21,NURSE - BAND 5 - AGENCY,Non Recurrent 2012/13,HCL NURSING,HNSI0000668,1232.92
Department of Health,Leicestershire Partnership NHS Trust,26/04/21,NURSE - BAND 2 - AGENCY,Rutland Ward Nursing,HCL NURSING,HNSI0000668,509.83
Department of Health,Leicestershire Partnership NHS Trust,26/04/21,NURSE - BAND 5 - AGENCY,Rutland Ward Nursing,HCL NURSING,HNSI0000668,897.20
Department of Health,Leicestershire Partnership NHS Trust,26/04/21,Nurse - Band 6 -Agency,South Leicestershire CMHT MHSOP,HCL NURSING,HNSI0000668,1305.81
Department of Health,Leicestershire Partnership NHS Trust,26/04/21,NURSE - BAND 5 - AGENCY,St Lukes Stroke Ward,HCL NURSING,HNSI0000668,1158.14
Department of Health,Leicestershire Partnership NHS Trust,26/04/21,NURSE - BAND 2 - AGENCY,St Lukes Ward 3,HCL NURSING,HNSI0000668,2027.58
Department of Health,Leicestershire Partnership NHS Trust,26/04/21,NURSE - BAND 2 - AGENCY,Wakerley Ward,HCL NURSING,HNSI0000668,1764.49
Department of Health,Leicestershire Partnership NHS Trust,26/04/21,NURSE - BAND 5 - AGENCY,Wakerley Ward,HCL NURSING,HNSI0000668,4105.03
Department of Health,Leicestershire Partnership NHS Trust,26/04/21,NURSE - BAND 2 - AGENCY,Welford Ward,HCL NURSING,HNSI0000668,403.37
Department of Health,Leicestershire Partnership NHS Trust,26/04/21,Crs_NHS_LT1y -Resus Inventory Supplied.,Balance Sheet Collection,SUPPLY CHAIN CO LTD,1122013728,34789.86
Department of Health,Leicestershire Partnership NHS Trust,26/04/21,Leased / Hired Vehicles,Assertive Outreach Services,AUTOMOTIVE LEASING LTD,508270935,5.00
Department of Health,Leicestershire Partnership NHS Trust,26/04/21,Leased / Hired Vehicles,Autism,AUTOMOTIVE LEASING LTD,508270935,1277.92
Department of Health,Leicestershire Partnership NHS Trust,26/04/21,Prep_ LT1y -Prepayments Lease Cars,Balance Sheet Collection,AUTOMOTIVE LEASING LTD,508270935,32788.97
Department of Health,Leicestershire Partnership NHS Trust,26/04/21,Trade_Drs_LT1y -Lease Cars Invoicing Contrl Ac.,Balance Sheet Collection,AUTOMOTIVE LEASING LTD,508270935,980.25
Department of Health,Leicestershire Partnership NHS Trust,26/04/21,Leased / Hired Vehicles,COVID 19,AUTOMOTIVE LEASING LTD,508270935,472.36
Department of Health,Leicestershire Partnership NHS Trust,26/04/21,Leased / Hired Vehicles,City Planned Care - West - Therapy,AUTOMOTIVE LEASING LTD,508270935,15.00
Department of Health,Leicestershire Partnership NHS Trust,26/04/21,Leased / Hired Vehicles,County 0-19 Melton HV,AUTOMOTIVE LEASING LTD,508270935,10.00
Department of Health,Leicestershire Partnership NHS Trust,26/04/21,Leased / Hired Vehicles,Crisis Response and Home Treatment,AUTOMOTIVE LEASING LTD,508270935,20.00
Department of Health,Leicestershire Partnership NHS Trust,26/04/21,Leased / Hired Vehicles,"East Planned Care - Melton,Syston,Rutland",AUTOMOTIVE LEASING LTD,508270935,10.00
Department of Health,Leicestershire Partnership NHS Trust,26/04/21,Leased / Hired Vehicles,Integrated Specialist Palliative Care Team,AUTOMOTIVE LEASING LTD,508270935,403.29
Department of Health,Leicestershire Partnership NHS Trust,26/04/21,Leased / Hired Vehicles,PIER Team - Early Intervention Services,AUTOMOTIVE LEASING LTD,508270935,10.00
Department of Health,Leicestershire Partnership NHS Trust,26/04/21,Leased / Hired Vehicles,St Lukes Ward 3,AUTOMOTIVE LEASING LTD,508270935,5.00
Department of Health,Leicestershire Partnership NHS Trust,26/04/21,Leased / Hired Vehicles,West Leicestershire CMHT MHSOP,AUTOMOTIVE LEASING LTD,508270935,443.32
Department of Health,Leicestershire Partnership NHS Trust,26/04/21,Leased / Hired Vehicles,West Planned Care  - Charnwood Hub,AUTOMOTIVE LEASING LTD,508270935,15.00
Department of Health,Leicestershire Partnership NHS Trust,26/04/21,Leased / Hired Vehicles,West Planned Care  - Hinckley Hub,AUTOMOTIVE LEASING LTD,508270935,20.00
Department of Health,Leicestershire Partnership NHS Trust,26/04/21,Leased / Hired Vehicles,West Planned Care - NWL Hub,AUTOMOTIVE LEASING LTD,508270935,30.00
Department of Health,Leicestershire Partnership NHS Trust,28/04/21,Computer EquipmentMaintenance,HIS Systems & Development,ALERTIVE LIMITED,2020-2078,60000.00
Department of Health,Leicestershire Partnership NHS Trust,28/04/21,Contract : Premises Security,Estates & Facilities Central,UHL NHS TRUST (RWE),L0250196,2295.52
Department of Health,Leicestershire Partnership NHS Trust,28/04/21,Gas,Estates & Facilities Central,UHL NHS TRUST (RWE),L0250196,29667.40
Department of Health,Leicestershire Partnership NHS Trust,28/04/21,Services / Recharges from NHS Trusts,UHL Expenditure Contract,UHL NHS TRUST (RWE),L0250196,5552.23
Department of Health,Leicestershire Partnership NHS Trust,29/04/21,Drugs,Adult City Drugs,JANSSEN-CILAG LTD,930738933,13699.26
Department of Health,Leicestershire Partnership NHS Trust,29/04/21,Drugs,Adult County Drugs,JANSSEN-CILAG LTD,930738933,20548.88
Department of Health,Leicestershire Partnership NHS Trust,29/04/21,Drugs,Adult City Drugs,JANSSEN-CILAG LTD,930730077,13868.26
Department of Health,Leicestershire Partnership NHS Trust,29/04/21,Drugs,Adult County Drugs,JANSSEN-CILAG LTD,930730077,20802.39
Department of Health,Leicestershire Partnership NHS Trust,29/04/21,Landline Telephone Rental / Calls,Information Services,VIRGIN MEDIA BUSINESS,919266-128,198525.53
